bitfinex/quotes_SOLUSD_20241113
["timestamp","ask_amount","ask_price","bid_price","bid_amount"]
[1731504430275,7.6796,208.19,208.1,20.0]
[1731504430489,0.1,208.16,208.1,20.0]
[1731504430798,0.1,208.18,207.99,23.776884]
[1731504430972,7.5796,208.19,208.04,20.12549]
[1731504431173,7.5796,208.19,208.05,23.776884]
[1731504431691,8.2573,208.26,208.1,0.12549]
[1731504431986,8.2573,208.26,208.14,20.0]
[1731504432284,0.1,208.21,208.14,20.0]
[1731504432487,0.1,208.21,208.09,23.776884]
[1731504432488,0.1,208.21,208.1,20.0]
[1731504432665,0.22549,208.25,208.14,20.0]
[1731504433078,0.1,208.25,208.18,20.0]
[1731504433492,7.3939,208.33,208.18,20.0]
[1731504433493,0.1,208.27,208.18,20.0]
[1731504433689,0.1,208.27,208.19,23.776884]
[1731504433984,0.1,208.27,208.2,20.0]
[1731504434482,7.4939,208.33,208.21,23.776884]
[1731504434686,7.3939,208.33,208.23,23.776884]
[1731504434879,0.1,208.31,208.11,0.1]
[1731504435192,7.3939,208.33,208.16,0.12549]
[1731504435393,0.1,208.32,208.19,23.776884]
[1731504435596,0.1,208.32,208.2,20.0]
[1731504435775,0.1,208.32,208.23,23.776884]
[1731504436108,7.3939,208.33,208.24,20.0]
[1731504436389,7.3939,208.33,208.26,20.0]
[1731504436794,7.3939,208.33,208.25,23.776884]
[1731504436963,16.263,208.36,208.2,0.1]
[1731504437290,0.1,208.35,208.22,43.776884]
[1731504437595,0.1,208.33,208.22,43.776884]
[1731504437972,0.1,208.3,208.22,43.776884]
[1731504438185,0.1,208.28,208.22,23.776884]
[1731504438467,0.1,208.32,208.22,23.776884]
[1731504438668,16.263,208.36,208.22,23.876884]
[1731504438884,0.5397677,208.37,208.24,23.776884]
[1731504439087,0.6397677,208.37,208.24,23.776884]
[1731504439272,0.5397677,208.37,208.26,0.1]
[1731504439476,0.5397677,208.37,208.28,23.776884]
[1731504439785,0.5397677,208.37,208.26,0.1]
[1731504439786,0.5397677,208.37,208.32,23.776884]
[1731504440085,0.1,208.35,208.21,0.1]
[1731504440294,0.5397677,208.37,208.09,23.28845514]
[1731504440295,0.5397677,208.37,208.26,0.1]
[1731504441169,0.5397677,208.37,208.29,20.1]
[1731504441381,0.5397677,208.37,208.33,20.0]
[1731504441585,0.5397677,208.37,208.35,20.0]
[1731504441795,0.5397677,208.37,208.36,43.776884]
[1731504441967,0.5397677,208.37,208.36,20.0]
[1731504442163,0.6397677,208.37,208.19,20.1]
[1731504442393,0.6397677,208.37,208.21,0.1]
[1731504442582,0.6397677,208.37,208.2,6.00336301]
[1731504443092,0.1,208.34,208.2,6.00336301]
[1731504443272,0.1,208.34,208.21,0.1]
[1731504443471,0.5397677,208.37,208.21,0.1]
[1731504443688,0.5397677,208.37,208.26,0.1]
[1731504443873,0.5397677,208.37,208.27,6.00336301]
[1731504444196,0.5397677,208.37,208.28,0.1]
[1731504444368,0.5397677,208.37,208.32,0.1]
[1731504444574,0.5397677,208.37,208.32,6.00336301]
[1731504444880,0.5397677,208.37,208.33,43.776884]
[1731504445687,0.5397677,208.37,208.33,49.78024701]
[1731504447186,0.3925875,208.37,208.33,49.78024701]
[1731504447502,0.3925875,208.37,208.29,20.0]
[1731504447975,0.3925875,208.37,208.26,7.86324026]
[1731504448176,0.3925875,208.37,208.27,20.0]
[1731504448399,0.3925875,208.37,208.26,6.00336301]
[1731504448595,0.3925875,208.37,208.23,0.1]
[1731504448893,8.75e-05,208.37,208.33,0.1]
[1731504449075,8.75e-05,208.37,208.33,6.00336301]
[1731504449667,8.75e-05,208.37,208.34,23.776884]
[1731504449891,8.75e-05,208.37,208.36,43.776884]
[1731504451691,8.75e-05,208.37,208.36,23.776884]
[1731504451888,8.75e-05,208.37,208.28,6.00336301]
[1731504452207,0.1,208.33,208.14,0.12549]
[1731504452400,0.1,208.26,208.14,0.12549]
[1731504452580,0.1,208.24,208.14,0.12549]
[1731504453481,0.1,208.22,208.14,0.12549]
[1731504454494,0.1,208.27,208.14,0.12549]
[1731504454698,29.2076,208.36,208.14,0.12549]
[1731504454699,0.1,208.28,208.14,0.12549]
[1731504454999,0.1,208.25,208.14,0.12549]
[1731504455173,0.1,208.28,208.14,0.12549]
[1731504455585,0.1,208.26,208.14,0.12549]
[1731504455781,0.1,208.32,208.14,0.12549]
[1731504456078,0.1,208.35,208.14,0.12549]
[1731504456275,0.1,208.31,208.14,0.22549]
[1731504456586,0.1,208.35,208.14,0.22549]
[1731504456772,0.1,208.31,208.14,0.22549]
[1731504456972,0.1,208.31,208.14,0.12549]
[1731504457375,0.1,208.28,208.14,0.12549]
[1731504457581,0.1,208.32,208.14,0.12549]
[1731504457875,0.1,208.22,208.14,0.12549]
[1731504458575,0.1,208.21,208.14,0.12549]
[1731504458778,0.1,208.23,208.14,0.12549]
[1731504458993,0.1,208.19,208.14,0.12549]
[1731504459210,0.1,208.16,208.14,0.12549]
[1731504460173,0.1,208.13,208.12,0.12549]
[1731504460578,0.1,208.09,207.95,7.49855608]
[1731504460782,0.1,208.09,207.9,0.83284412]
[1731504460783,0.1,208.05,207.9,0.83284412]
[1731504461197,36.04500124,208.17,207.9,0.83284412]
[1731504461198,0.1,208.14,207.92,0.1]
[1731504461384,0.1,208.14,207.95,0.1]
[1731504461698,0.1,208.17,207.93,0.1]
[1731504461896,0.1,208.17,207.9,0.83284412]
[1731504461897,0.1,208.13,207.96,0.1]
[1731504462087,0.1,208.16,207.94,0.1]
[1731504462293,0.1,208.12,207.92,0.1]
[1731504462488,0.1,208.09,207.97,9.798]
[1731504462697,0.1,208.09,207.9,0.83284412]
[1731504463073,0.1,208.09,207.94,0.12549]
[1731504463996,0.1,208.1,207.96,23.902374]
[1731504464199,0.1,208.08,207.99,20.0]
[1731504464390,0.1,208.08,208.02,23.776884]
[1731504464586,0.1,208.08,208.03,20.0]
[1731504465001,0.1,208.14,208.03,20.0]
[1731504465002,0.1,208.1,208.03,20.0]
[1731504465302,0.1,208.02,207.93,1.921054]
[1731504465483,0.1,208.02,207.84,0.1]
[1731504465797,0.1,208.0,207.83,10.3987]
[1731504466002,0.1,208.0,207.75,0.50172]
[1731504466003,0.1,207.95,207.81,1.69308913]
[1731504466298,0.1,207.95,207.76,10.215]
[1731504466299,0.1,207.95,207.84,0.83494517]
[1731504466611,0.1,207.97,207.84,0.83494517]
[1731504466977,9.9243,208.06,207.76,10.315]
[1731504466978,0.1,207.91,207.76,10.315]
[1731504467191,0.1,207.97,207.78,0.1]
[1731504467393,0.1,208.0,207.85,0.12549]
[1731504467599,10.0243,208.06,207.85,0.22549]
[1731504468113,0.1,208.0,207.87,0.22549]
[1731504468293,9.9243,208.06,207.89,23.902374]
[1731504468481,0.1,208.04,207.92,20.0]
[1731504468686,9.9243,208.06,207.95,23.776884]
[1731504469002,0.1,208.05,207.97,23.776884]
[1731504469210,0.1,208.05,207.96,20.0]
[1731504469211,10.0243,208.06,207.96,20.0]
[1731504469508,10.0243,208.06,207.88,0.12549]
[1731504469885,0.1,208.03,207.88,0.12549]
[1731504470202,0.1,208.0,207.86,1.921425]
[1731504470531,0.1,207.95,207.76,10.315]
[1731504470719,0.22549,208.05,207.84,2.756707]
[1731504470720,0.1,207.93,207.84,2.756707]
[1731504470884,0.1,207.91,207.84,1.922047]
[1731504471083,0.1,207.88,207.8,0.83509423]
[1731504471304,10.185,207.91,207.8,0.83509423]
[1731504471602,10.185,207.91,207.81,0.12549]
[1731504471805,10.7075,207.98,207.81,0.12549]
[1731504471988,10.7075,207.98,207.81,8.5959]
[1731504472188,0.1,207.95,207.81,8.5959]
[1731504472392,0.1,207.95,207.83,0.12549]
[1731504472585,10.8075,207.98,207.83,0.22549]
[1731504472791,0.1,208.05,207.88,0.1]
[1731504473093,0.1,208.01,207.86,23.776884]
[1731504473303,0.1,208.01,207.89,20.0]
[1731504473508,0.1,208.01,207.9,23.776884]
[1731504473808,0.1,208.01,207.84,0.1]
[1731504473809,0.1,207.94,207.93,20.0]
[1731504473990,0.1,207.94,207.93,23.776884]
[1731504474191,0.1,208.02,207.94,23.776884]
[1731504475107,0.1,208.02,207.81,10.31181904]
[1731504475108,0.1,207.95,207.81,10.21181904]
[1731504475411,10.352,208.06,207.66,70.0]
[1731504475412,0.1,207.88,207.75,2.21601128]
[1731504475591,0.1,207.92,207.75,0.50172]
[1731504475788,0.1,207.92,207.79,10.21182]
[1731504476210,10.4418,207.93,207.79,10.21182]
[1731504476211,10.5418,207.93,207.79,10.21182]
[1731504476789,10.5418,207.93,207.81,0.12549]
[1731504477192,24.3158,207.94,207.81,0.12549]
[1731504477507,24.3158,207.94,207.81,23.902374]
[1731504477682,0.1,207.91,207.84,20.0]
[1731504477888,0.1,207.91,207.83,23.776884]
[1731504478216,0.1,207.91,207.81,23.902374]
[1731504478506,0.1,207.89,207.8,0.83509423]
[1731504478807,0.1,207.89,207.81,0.12549]
[1731504479297,0.1,207.87,207.8,0.83509423]
[1731504480095,0.1,207.89,207.81,0.12549]
[1731504480413,0.1,207.86,207.74,1.69373706]
[1731504480712,0.1,207.89,207.8,0.83519123]
[1731504480898,0.1,207.86,207.76,0.12549]
[1731504481086,0.1,207.86,207.77,1.922737]
[1731504481288,0.1,207.86,207.77,2.75801099]
[1731504481486,0.1,207.86,207.78,0.12549]
[1731504481691,0.1,207.86,207.8,23.902374]
[1731504481903,24.3158,207.94,207.77,2.75801099]
[1731504481904,0.1,207.82,207.77,0.83527399]
[1731504482083,24.4158,207.94,207.77,0.83527399]
[1731504482084,0.1,207.89,207.77,0.83527399]
[1731504482291,0.1,207.84,207.73,20.9155898]
[1731504482506,0.1,207.89,207.76,0.12549]
[1731504482707,0.1,207.85,207.76,0.12549]
[1731504483205,0.1,207.87,207.76,23.902374]
[1731504483705,0.1,207.85,207.78,23.902374]
[1731504484083,0.1,207.85,207.81,20.0]
[1731504484289,0.1,207.87,207.83,20.0]
[1731504484489,0.1,207.87,207.84,23.776884]
[1731504484708,0.1,207.87,207.85,20.0]
[1731504484914,0.1,207.9,207.89,20.0]
[1731504485108,24.3158,207.94,207.92,23.776884]
[1731504485288,0.1,207.95,207.94,43.776884]
[1731504485490,10.7921,207.99,207.96,23.776884]
[1731504485711,0.1,207.97,207.96,23.776884]
[1731504486015,10.7921,207.99,207.96,23.776884]
[1731504486819,0.1,207.99,207.98,43.776884]
[1731504486994,0.1,208.0,207.99,43.776884]
[1731504487196,0.1,207.98,207.88,1.71830188]
[1731504487410,0.1,207.98,207.92,20.0]
[1731504487707,0.1,207.98,207.97,23.776884]
[1731504487896,0.1,207.95,207.94,20.0]
[1731504488097,0.1,207.95,207.94,43.776884]
[1731504488694,0.1,207.92,207.82,1.72889632]
[1731504488893,0.1,207.92,207.79,0.1]
[1731504489213,0.1,207.92,207.76,25.04954779]
[1731504489420,26.4164,208.02,207.85,0.1]
[1731504489618,0.1,208.04,207.91,0.1]
[1731504489791,0.1,208.0,207.91,0.1]
[1731504489996,0.1,208.07,207.91,0.1]
[1731504491014,0.1,208.08,207.95,0.1]
[1731504491192,25.6683,208.16,207.99,0.1]
[1731504491392,25.6683,208.16,208.12,23.776884]
[1731504492095,10.3655,208.18,208.13,20.0]
[1731504492299,10.3655,208.18,207.99,24.08916389]
[1731504492300,0.1,208.19,208.18,23.776884]
[1731504492500,25.8478,208.23,208.18,23.776884]
[1731504492721,0.1,208.21,208.18,23.776884]
[1731504492892,0.1,208.19,208.18,23.776884]
[1731504493099,0.1,208.23,208.18,43.776884]
[1731504493299,0.1,208.21,208.18,43.776884]
[1731504493521,10.4267,208.25,208.2,23.776884]
[1731504493896,0.1,208.23,208.21,20.0]
[1731504494113,0.1,208.2,208.06,23.776884]
[1731504494315,0.1,208.21,208.1,23.776884]
[1731504494610,0.1,208.26,208.17,20.0]
[1731504494798,0.1,208.26,208.19,20.0]
[1731504495114,0.1,208.22,208.21,20.0]
[1731504495321,0.1,208.24,208.2,23.776884]
[1731504495493,0.1,208.27,208.22,23.776884]
[1731504495818,0.1,208.25,208.24,43.776884]
[1731504496019,0.1,208.27,208.24,43.776884]
[1731504496222,0.1,208.29,208.26,23.776884]
[1731504496397,0.1,208.29,208.28,23.776884]
[1731504496593,11.0416,208.31,208.28,23.776884]
[1731504496797,0.1,208.29,208.27,20.0]
[1731504497110,0.1,208.25,208.17,0.12549]
[1731504497315,0.1,208.22,208.17,0.12549]
[1731504497499,0.1,208.24,208.12,1.71992968]
[1731504497698,0.1,208.24,208.08,0.1]
[1731504498026,0.1,208.28,208.08,0.1]
[1731504498201,0.1,208.28,208.1,0.1]
[1731504498521,0.1,208.28,208.09,0.12549]
[1731504498816,0.1,208.26,208.13,0.12549]
[1731504498994,0.1,208.26,208.15,23.902374]
[1731504499198,0.1,208.21,208.15,23.902374]
[1731504499498,0.1,208.21,208.08,1.76252696]
[1731504499702,0.1,208.21,208.04,0.1]
[1731504499703,0.1,208.21,208.09,0.12549]
[1731504499910,0.1,208.18,208.02,29.39346742]
[1731504500103,0.1,208.15,208.03,0.10005464]
[1731504500305,0.1,208.17,208.03,0.10004983]
[1731504500510,0.1,208.15,208.03,0.10004983]
[1731504500722,0.1,208.19,208.03,0.32553983]
[1731504501017,0.1,208.23,208.06,0.22549]
[1731504501525,0.1,208.23,208.06,24.002374]
[1731504501702,0.1,208.23,208.07,0.22549]
[1731504501901,0.1,208.23,208.07,0.12549]
[1731504502202,0.1,208.22,208.1,23.776884]
[1731504502400,0.1,208.18,208.14,23.776884]
[1731504502610,0.1,208.2,208.02,26.71157599]
[1731504502916,0.1,208.22,208.03,0.10005464]
[1731504503104,0.1,208.19,208.03,0.22553983]
[1731504503303,0.1,208.2,208.04,24.13543352]
[1731504503499,26.4222,208.23,208.05,0.10004502]
[1731504503699,0.1,208.15,208.02,21.84639243]
[1731504503912,0.1,208.2,208.06,20.0]
[1731504504118,0.1,208.2,208.09,23.776884]
[1731504504330,26.3222,208.23,208.13,23.776884]
[1731504504501,0.1,208.26,208.18,20.0]
[1731504504702,0.1,208.26,208.19,23.776884]
[1731504504900,0.1,208.26,208.2,20.0]
[1731504505101,0.1,208.26,208.22,20.0]
[1731504505325,0.1,208.26,208.23,23.776884]
[1731504505612,0.1,208.26,208.25,23.776884]
[1731504506003,0.1,208.25,208.24,20.0]
[1731504506317,0.1,208.26,208.25,23.776884]
[1731504506525,0.1,208.28,208.25,23.776884]
[1731504506701,25.7637,208.3,208.25,23.776884]
[1731504506908,0.1,208.28,208.25,23.776884]
[1731504507125,0.1,208.22,208.21,20.0]
[1731504507318,25.7637,208.3,208.12,0.1]
[1731504507622,25.7637,208.3,208.22,20.12549]
[1731504507932,0.1,208.28,208.22,20.12549]
[1731504508629,0.1,208.28,208.27,23.776884]
[1731504508925,0.1,208.27,208.22,20.0]
[1731504509099,0.1,208.28,208.22,20.0]
[1731504509310,25.7637,208.3,208.23,0.12549]
[1731504509519,25.7637,208.3,208.25,0.12549]
[1731504510225,10.9416,208.31,208.28,20.0]
[1731504510418,0.1,208.34,208.28,20.0]
[1731504510419,0.1,208.34,208.29,23.776884]
[1731504510628,0.1,208.34,208.3,20.0]
[1731504510919,0.1,208.32,208.3,20.0]
[1731504511123,0.1,208.32,208.27,0.12549]
[1731504511532,0.1,208.32,208.28,20.0]
[1731504512113,0.1,208.3,208.26,20.0]
[1731504512804,0.1,208.28,208.26,20.0]
[1731504513004,0.1,208.23,208.11,239.5471402]
[1731504513210,0.1,208.3,208.13,0.22549]
[1731504513419,0.1,208.3,208.15,0.1]
[1731504513611,0.1,208.33,208.15,0.1]
[1731504514022,37.182,208.37,208.15,0.1]
[1731504514023,0.1,208.31,208.15,0.1]
[1731504514211,0.1,208.31,208.15,20.22549]
[1731504514421,0.1,208.31,208.17,20.0]
[1731504514623,0.1,208.31,208.21,20.12549]
[1731504514916,0.1,208.3,208.25,20.0]
[1731504515306,0.1,208.3,208.26,23.776884]
[1731504515506,0.1,208.28,208.27,20.0]
[1731504515725,0.1,208.24,208.12,1.918891]
[1731504516118,0.1,208.26,208.12,1.918891]
[1731504516324,0.1,208.22,208.12,1.918891]
[1731504517122,0.1,208.26,208.12,1.918891]
[1731504517324,0.1,208.22,208.13,0.12549]
[1731504517731,0.1,208.29,208.13,0.12549]
[1731504517928,0.1,208.29,208.13,0.22549]
[1731504518235,0.1,208.29,208.12,23.71699046]
[1731504518435,0.1,208.29,208.13,0.12549]
[1731504518835,0.1,208.3,208.13,0.12549]
[1731504519335,0.1,208.32,208.15,0.1]
[1731504519631,37.182,208.37,208.13,23.902374]
[1731504519632,0.1,208.3,208.17,0.12549]
[1731504519932,0.1,208.32,208.19,23.902374]
[1731504520134,0.1,208.32,208.21,0.12549]
[1731504520313,0.1,208.3,208.21,23.902374]
[1731504520517,0.1,208.3,208.24,20.0]
[1731504520729,0.1,208.3,208.26,20.0]
[1731504521227,0.1,208.3,208.12,3.61699046]
[1731504521437,0.1,208.25,208.12,1.918891]
[1731504521736,0.1,208.3,208.13,0.12549]
[1731504521936,0.1,208.27,208.13,0.12549]
[1731504522129,0.1,208.32,208.14,0.1]
[1731504522333,0.1,208.27,208.14,0.1]
[1731504522644,0.1,208.27,208.14,20.0]
[1731504522841,0.1,208.25,208.16,20.0]
[1731504523011,0.1,208.25,208.18,20.0]
[1731504523224,37.182,208.37,208.12,3.64805046]
[1731504523225,0.1,208.21,208.12,3.64805046]
[1731504523541,0.2,208.32,208.13,0.12549]
[1731504524036,0.2,208.32,208.12,3.64805046]
[1731504524227,0.1,208.36,208.12,3.64805046]
[1731504524435,0.1,208.36,208.13,0.12549]
[1731504524633,0.1,208.35,208.13,0.12549]
[1731504524816,0.1,208.33,208.13,0.12549]
[1731504525842,0.1,208.31,208.2,20.0]
[1731504526349,0.1,208.29,208.12,1.918891]
[1731504526634,10.6497,208.3,208.12,1.918891]
[1731504526635,10.6497,208.3,208.13,0.12549]
[1731504526833,10.7497,208.3,208.13,0.12549]
[1731504527049,10.6497,208.3,208.13,0.12549]
[1731504527219,10.7497,208.3,208.13,0.12549]
[1731504527557,0.1,208.26,208.12,1.918891]
[1731504527839,10.5633,208.23,208.03,239.5471402]
[1731504528137,10.5633,208.23,208.04,0.15430636]
[1731504528527,10.5633,208.23,208.04,10.71760636]
[1731504528939,10.5633,208.23,208.05,23.776884]
[1731504529124,10.5633,208.23,208.08,20.12549]
[1731504529329,10.5633,208.23,208.12,20.12549]
[1731504529642,10.5633,208.23,208.15,23.902374]
[1731504530340,10.5065,208.23,208.17,23.902374]
[1731504530525,10.5065,208.23,208.18,20.0]
[1731504531032,10.5065,208.23,208.05,20.0]
[1731504531441,10.5065,208.23,208.06,0.12549]
[1731504532149,23.776884,208.22,208.06,0.12549]
[1731504532445,10.5065,208.23,208.06,0.12549]
[1731504532746,10.5065,208.23,208.05,1.68717685]
[1731504532945,10.5065,208.23,208.06,0.12549]
[1731504534422,23.876884,208.22,208.05,0.12549]
[1731504534743,23.776884,208.22,208.05,0.12549]
[1731504535238,0.1,208.19,208.04,10.5633]
[1731504535736,23.976884,208.2,208.04,10.5633]
[1731504536037,0.1,208.14,207.93,1.71605813]
[1731504536225,36.0667,208.16,207.98,0.83445891]
[1731504536424,36.2667,208.16,207.94,241.4679082]
[1731504536934,36.0667,208.16,207.98,0.12549]
[1731504537930,36.0667,208.16,207.98,23.902374]
[1731504538141,0.1,208.13,207.97,0.83454957]
[1731504538338,36.0667,208.16,207.97,0.83454957]
[1731504538339,36.1667,208.16,207.97,0.83454957]
[1731504538529,36.0667,208.16,207.98,0.12549]
[1731504539543,36.0667,208.16,207.98,24.002374]
[1731504539726,36.0667,208.16,208.02,23.902374]
[1731504539919,36.0667,208.16,208.07,20.0]
[1731504540122,36.0667,208.16,208.09,20.0]
[1731504540318,36.0667,208.16,208.1,23.776884]
[1731504540519,36.0667,208.16,208.11,20.0]
[1731504540723,10.5959,208.16,208.12,0.12549]
[1731504540935,10.5959,208.16,207.99,20.0]
[1731504541123,10.5959,208.16,208.05,20.0]
[1731504541337,10.5959,208.16,208.01,20.0]
[1731504541520,10.5959,208.16,207.97,2.5198875]
[1731504541723,10.3243,208.25,208.01,26.93389]
[1731504541939,25.6098,208.28,208.1,0.12549]
[1731504542248,25.6098,208.28,208.11,5.76254912]
[1731504542750,25.6098,208.28,208.15,20.12549]
[1731504543651,25.6098,208.28,208.17,0.12549]
[1731504543948,25.6098,208.28,208.19,20.12549]
[1731504544333,25.6098,208.28,208.21,20.12549]
[1731504544646,25.6098,208.28,208.13,1.68774703]
[1731504544835,25.6098,208.28,208.15,0.12549]
[1731504545226,25.6098,208.28,208.13,23.776884]
[1731504545753,25.6098,208.28,208.18,20.12549]
[1731504546249,25.6098,208.28,208.11,20.0]
[1731504546546,0.1,208.26,208.08,1.72103239]
[1731504546846,0.1,208.25,208.0,4.06146291]
[1731504547045,0.1,208.23,208.01,5.76254912]
[1731504547244,0.1,208.23,208.02,0.12549]
[1731504547547,0.1,208.22,208.01,5.76254912]
[1731504547744,23.876884,208.25,208.01,5.76254912]
[1731504547925,10.0074,208.26,208.02,5.54164245]
[1731504548127,24.8859,208.16,208.03,5.76254912]
[1731504548334,24.8859,208.16,207.97,0.83454957]
[1731504548335,0.1,208.13,207.97,0.83454957]
[1731504548527,24.8859,208.16,208.0,0.1]
[1731504548730,24.8859,208.16,208.02,0.12549]
[1731504549044,24.8859,208.16,208.04,0.12549]
[1731504549637,24.8859,208.16,208.07,0.12549]
[1731504549833,24.8859,208.16,208.07,20.12549]
[1731504550033,24.8859,208.16,208.09,20.0]
[1731504550642,24.8859,208.16,207.97,0.93454957]
[1731504550955,24.8859,208.16,208.03,0.12549]
[1731504551135,24.8859,208.16,208.02,20.0]
[1731504551531,24.8859,208.16,208.04,20.0]
[1731504551850,24.8859,208.16,208.05,0.12549]
[1731504552048,24.8859,208.16,207.97,2.56320273]
[1731504552353,24.8859,208.16,207.99,0.02881636]
[1731504552530,24.8859,208.16,207.98,0.02881636]
[1731504552732,24.8859,208.16,207.98,0.10007388]
[1731504553032,24.8859,208.16,207.98,0.02881636]
[1731504553241,24.8859,208.16,208.01,0.1]
[1731504553438,24.8859,208.16,207.99,15.59114448]
[1731504553635,10.0255,208.21,208.02,5.76254912]
[1731504553834,10.0255,208.21,208.07,0.1]
[1731504554037,10.0255,208.21,208.08,5.76254912]
[1731504554248,10.0255,208.21,208.12,20.0]
[1731504554851,10.0255,208.21,208.03,24.06146291]
[1731504555050,10.0255,208.21,208.05,20.0]
[1731504555359,10.0255,208.21,208.09,20.0]
[1731504555941,10.0255,208.21,208.03,4.06146291]
[1731504556148,10.0255,208.21,208.04,23.776884]
[1731504556349,10.1255,208.21,208.04,23.776884]
[1731504556551,10.1255,208.21,207.97,2.56634772]
[1731504556857,0.1,208.2,207.98,0.02881636]
[1731504557057,0.1,208.19,207.98,0.02881636]
[1731504557236,10.2447,208.15,207.98,0.02881636]
[1731504557554,10.3799,208.1,207.98,0.02881636]
[1731504557768,10.3799,208.1,207.94,1.920768]
[1731504558062,10.3799,208.1,207.95,0.12549]
[1731504558442,10.3799,208.1,207.94,1.920768]
[1731504559061,10.3799,208.1,207.9,0.1939046]
[1731504559062,0.1,208.0,207.9,0.1939046]
[1731504559247,24.961,207.99,207.9,0.1939046]
[1731504559441,24.861,207.99,207.78,0.83524069]
[1731504559656,24.861,207.99,207.87,0.12549]
[1731504559837,24.861,207.99,207.89,0.12549]
[1731504560036,24.861,207.99,207.91,0.12549]
[1731504560243,24.861,207.99,207.86,10.1925]
[1731504561249,24.861,207.99,207.87,0.12549]
[1731504561451,24.861,207.99,207.88,5.54164245]
[1731504561659,24.861,207.99,207.9,20.0]
[1731504561858,0.1,207.97,207.79,9.60310536]
[1731504562162,0.1,207.97,207.83,0.12549]
[1731504562344,10.2085,207.98,207.82,19.22675]
[1731504562543,23.902374,207.97,207.82,19.22675]
[1731504562858,0.1,207.93,207.73,5.76254912]
[1731504563036,0.1,207.93,207.8,0.12549]
[1731504563446,0.1,207.95,207.8,0.12549]
[1731504563647,23.776884,207.97,207.81,0.12549]
[1731504564047,23.776884,207.97,207.81,20.12549]
[1731504564258,10.2085,207.98,207.83,20.12549]
[1731504564563,23.776884,207.97,207.83,20.12549]
[1731504564754,10.1085,207.98,207.81,20.12549]
[1731504564942,10.2085,207.98,207.83,20.12549]
[1731504565141,23.776884,207.97,207.83,20.12549]
[1731504565349,10.1085,207.98,207.83,20.12549]
[1731504565542,10.2085,207.98,207.83,0.12549]
[1731504565742,10.1085,207.98,207.83,20.12549]
[1731504565963,10.2085,207.98,207.83,20.12549]
[1731504566148,10.1085,207.98,207.84,23.776884]
[1731504566338,10.1085,207.98,207.85,20.0]
[1731504566542,10.1085,207.98,207.86,0.12549]
[1731504567144,10.1085,207.98,207.83,20.0]
[1731504567349,0.1,207.93,207.8,19.22675]
[1731504567552,10.8161,207.92,207.81,0.12549]
[1731504568149,10.8161,207.92,207.77,0.12549]
[1731504568347,10.8161,207.92,207.82,6.377102]
[1731504568544,10.8161,207.92,207.83,20.0]
[1731504569246,10.8161,207.92,207.82,6.377102]
[1731504569444,10.8161,207.92,207.77,43.902374]
[1731504569637,26.1927,207.89,207.72,4.06146291]
[1731504569837,0.1,207.86,207.75,6.377102]
[1731504570047,23.876884,207.87,207.62,4.06146291]